fUSD/lending_fUSD_20250521
["ID","MTS","AMOUNT","RATE_DAILY","PERIOD"]
[361820374,1747823582903,-2279.99,0.00035616,5]
[361820375,1747823582914,-1093.42,0.00035616,5]
[361820376,1747823582925,-773.61,0.00035616,5]
[361820377,1747823582937,-1587.6,0.00035616,5]
[361820378,1747823582948,-2000.0,0.00035616,5]
[361820379,1747823582960,-3023.35,0.00035616,5]
[361820380,1747823582972,-2681.61,0.00035616,5]
[361820381,1747823582983,-420.0,0.00035616,5]
[361820382,1747823582996,-3921.51,0.00035616,5]
[361820383,1747823583008,-774.74,0.00035616,5]
[361820384,1747823583019,-11832.32,0.00035616,5]
[361820385,1747823583031,-1140.49,0.00035616,5]
[361820386,1747823583043,-716.85,0.00035616,5]
[361820387,1747823583055,-1451.14,0.00035616,5]
[361820388,1747823583067,-1980.16,0.00035616,5]
[361820389,1747823583079,-4169.63,0.00035616,5]
[361820390,1747823583091,-614.3,0.00035616,5]
[361820391,1747823583102,-478.74,0.00035616,5]
[361820392,1747823583115,-1064.83,0.00035616,5]
[361820393,1747823583127,-1031.8,0.00035616,5]
[361820394,1747823583139,-2328.19,0.00035616,5]
[361820395,1747823583151,-420.0,0.00035616,5]
[361820396,1747823583163,-2178.09,0.00035616,5]
[361820397,1747823583174,-595.22,0.00035616,5]
[361820398,1747823583186,-420.0,0.00035616,5]
[361820399,1747823583198,-12779.36,0.00035616,5]
[361820400,1747823583210,-3199.69,0.00035616,5]
[361820401,1747823583221,-464.93,0.00035616,5]
[361820402,1747823583233,-1385.93,0.00035616,5]
[361820403,1747823583244,-3624.48,0.00035616,5]
[361820404,1747823583256,-1592.89,0.00035616,5]
[361820405,1747823583267,-420.0,0.00035616,5]
[361820406,1747823583278,-420.0,0.00035616,5]
[361820407,1747823583289,-3239.25,0.00035616,5]
[361820408,1747823583301,-420.0,0.00035616,5]
[361820409,1747823583312,-4626.37,0.00035616,5]
[361820410,1747823583324,-1377.38,0.00035616,5]
[361820411,1747823583336,-613.45,0.00035616,5]
[361820412,1747823583347,-2100.46,0.00035616,5]
[361820413,1747823583358,-232873.01,0.00035616,5]
[361820414,1747823583370,-420.0,0.00035616,5]
[361820415,1747823583384,-2870.6,0.00035616,5]
[361820416,1747823583396,-420.0,0.00035616,5]
[361820417,1747823583407,-420.0,0.00035616,5]
[361820418,1747823583419,-544.44,0.00035616,5]
[361820419,1747823583431,-2582.79,0.00035616,5]
[361820420,1747823583443,-1455.85,0.00035616,5]
[361820421,1747823583456,-3817.8,0.00035616,5]
[361820422,1747823583469,-1140.2,0.00035616,5]
[361820423,1747823583793,-1001.8,0.00035616,5]
[361820424,1747823583815,-814.19,0.00035616,5]
[361820425,1747823583824,-24741.12,0.00035616,5]
[361820426,1747823583833,-746.18,0.00035616,5]
[361820427,1747823583843,-1332.61,0.00035616,5]
[361820428,1747823583854,-847.4,0.00035616,5]
[361820429,1747823583864,-6653.58,0.00035616,5]
[361820430,1747823583874,-2208.36,0.00035616,5]
[361820431,1747823583885,-420.0,0.00035616,5]
[361820432,1747823583894,-3466.92,0.00035616,5]
[361820433,1747823583903,-756.27,0.00035616,5]
[361820434,1747823583914,-2780.98,0.00035616,5]
[361820435,1747823583924,-4377.12,0.00035616,5]
[361820436,1747823583934,-3727.2,0.00035616,5]
[361820437,1747823583945,-43430.9,0.00035616,5]
[361820438,1747823583956,-662.42,0.00035616,5]
[361820439,1747823583968,-1355.36,0.00035616,5]
[361820440,1747823583979,-1646.2,0.00035616,5]
[361820441,1747823583990,-420.0,0.00035616,5]
[361820442,1747823584001,-3823.68,0.00035616,5]
[361820443,1747823584011,-420.0,0.00035616,5]
[361820444,1747823584022,-1929.18,0.00035616,5]
[361820445,1747823584033,-692.1,0.00035616,5]
[361820446,1747823584043,-1375.19,0.00035616,5]
[361820447,1747823584053,-694.13,0.00035616,5]
[361820448,1747823584063,-27430.46,0.00035616,5]
[361820449,1747823584074,-2620.97,0.00035616,5]
[361820450,1747823584084,-1035.87,0.00035616,5]
[361820451,1747823584094,-8392.23,0.00035616,5]
[361820452,1747823584105,-3873.45,0.00035616,5]
[361820453,1747823584117,-831.34,0.00035616,5]
[361820454,1747823584128,-683.8,0.00035616,5]
[361820455,1747823584138,-420.0,0.00035616,5]
[361820456,1747823584149,-648.18,0.00035616,5]
[361820457,1747823584160,-333.94,0.00035616,5]
[361820458,1747823584170,-420.0,0.00035616,5]
[361820459,1747823584182,-2236.59,0.00035616,5]
[361820460,1747823584192,-862.9,0.00035616,5]
[361820461,1747823584202,-2431.99,0.00035616,5]
[361820462,1747823584213,-2055.72,0.00035616,5]
[361820463,1747823584224,-30819.65,0.00035616,5]
[361820464,1747823584234,-426.36,0.00035616,5]
[361820465,1747823584245,-420.0,0.00035616,5]
[361820466,1747823584255,-3529.5,0.00035616,5]
[361820467,1747823584266,-420.0,0.00035616,5]
[361820468,1747823584276,-507.94,0.00035616,5]
[361820469,1747823584287,-7158.91,0.00035616,5]
[361820470,1747823584296,-1372.96,0.00035616,5]
[361820471,1747823584307,-11263.62,0.00035616,5]
[361820472,1747823584317,-1395.97,0.00035616,5]
[361820473,1747823584327,-10218.82,0.00035616,5]
[361820474,1747823584338,-11955.57,0.00035616,5]
[361820475,1747823584348,-420.0,0.00035616,5]
[361820476,1747823584360,-903.34,0.00035616,5]
[361820477,1747823584371,-4237.43,0.00035616,5]
[361820478,1747823584384,-1156.02,0.00035616,5]
[361820479,1747823584395,-1250.1,0.00035616,5]
[361820480,1747823584406,-1940.56,0.00035616,5]
[361820481,1747823584416,-1535.0,0.00035616,5]
[361820482,1747823584427,-2611.65,0.00035616,5]
[361820483,1747823584438,-2088.87,0.00035616,5]
[361820484,1747823584449,-604.9,0.00035616,5]
[361820485,1747823584460,-436.47,0.00035616,5]
[361820486,1747823584471,-3994.4,0.00035616,5]
[361820487,1747823584481,-512.59,0.00035616,5]
[361820488,1747823584490,-4967.59,0.00035616,5]
[361820489,1747823584501,-997.3,0.00035616,5]
[361820490,1747823584510,-420.0,0.00035616,5]
[361820491,1747823584522,-2461.55,0.00035616,5]
[361820492,1747823584533,-420.0,0.00035616,5]
[361820493,1747823584543,-3960.15,0.00035616,5]
[361820494,1747823584553,-2650.09,0.00035616,5]
[361820495,1747823584563,-1029.17,0.00035616,5]
[361820496,1747823584573,-2763.51,0.00035616,5]
[361820497,1747823584584,-655.48,0.00035616,5]
[361820498,1747823584594,-3823.46,0.00035616,5]
[361820499,1747823584604,-6358.26,0.00035616,5]
[361820500,1747823584614,-150.0,0.00035616,10]
[361820501,1747823584624,-420.0,0.00035616,5]
[361820502,1747823584635,-420.0,0.00035616,5]
[361820503,1747823584645,-420.0,0.00035616,5]
[361820504,1747823584655,-420.0,0.00035616,5]
[361820505,1747823584665,-2138.94,0.00035616,5]
[361820506,1747823584675,-3514.65,0.00035616,5]
[361820507,1747823584686,-578.47,0.00035616,5]
[361820508,1747823584697,-420.0,0.00035616,5]
[361820509,1747823584707,-1778.66,0.00035616,5]
[361820510,1747823584718,-7467.95,0.00035616,5]
[361820511,1747823584728,-4923.96,0.00035616,5]
[361820512,1747823584739,-420.87,0.00035616,5]
[361820513,1747823584750,-420.0,0.00035616,5]
[361820514,1747823584760,-1388.95,0.00035616,5]
[361820515,1747823584771,-1642.25,0.00035616,5]
[361820516,1747823584782,-15894.82,0.00035616,5]
[361820517,1747823584794,-7928.56,0.00035616,5]
[361820518,1747823584805,-3648.84,0.00035616,5]
[361820519,1747823584816,-535.54,0.00035616,5]
[361820520,1747823584826,-420.0,0.00035616,5]
[361820521,1747823584836,-18415.06,0.00035616,5]
[361820522,1747823584847,-420.0,0.00035616,5]
[361820523,1747823584857,-2111.71,0.00035616,5]
[361820524,1747823584870,-584.64,0.00035616,5]
[361820525,1747823584881,-1096.3,0.00035616,5]
[361820526,1747823584892,-420.0,0.00035616,5]
[361820527,1747823584903,-2534.37,0.00035616,5]
[361820528,1747823584914,-420.0,0.00035616,5]
[361820529,1747823584925,-2727.38,0.00035616,5]
[361820530,1747823584936,-481.82,0.00035616,5]
[361820531,1747823584947,-4064.18,0.00035616,5]
[361820532,1747823584957,-1605.11,0.00035616,5]
[361820533,1747823584967,-583.63,0.00035616,5]
[361820534,1747823584977,-420.0,0.00035616,5]
[361820535,1747823584989,-2791.01,0.00035616,5]
[361820536,1747823584999,-3277.38,0.00035616,5]
[361820537,1747823585010,-1946.19,0.00035616,5]
[361820538,1747823585021,-4162.95,0.00035616,5]
[361820539,1747823585031,-486.64,0.00035616,5]
[361820540,1747823585042,-1793.09,0.00035616,5]
[361820541,1747823585053,-2365.3,0.00035616,5]
[361820542,1747823585063,-5030.39,0.00035616,5]
[361820543,1747823585073,-853.5,0.00035616,5]
[361820544,1747823585083,-1065.78,0.00035616,5]
[361820545,1747823585093,-5351.26,0.00035616,5]
[361820546,1747823585103,-8618.58,0.00035616,5]
[361820547,1747823585114,-420.0,0.00035616,5]
[361820548,1747823585124,-1488.03,0.00035616,5]
[361820549,1747823585134,-5387.66,0.00035616,5]
[361820550,1747823585144,-4366.01,0.00035616,5]
[361820551,1747823585154,-1284.33,0.00035616,5]
[361820552,1747823585163,-420.0,0.00035616,5]
[361820553,1747823585173,-3564.21,0.00035616,5]
[361820554,1747823585183,-420.0,0.00035616,5]
[361820555,1747823585193,-643.95,0.00035616,5]
[361820556,1747823585204,-11304.41,0.00035616,5]
[361820557,1747823585214,-751.7,0.00035616,5]
[361820558,1747823585224,-873.4,0.00035616,5]
[361820559,1747823585235,-781.82,0.00035616,5]
[361820560,1747823585245,-1096.95,0.00035616,5]
[361820561,1747823585256,-441.74,0.00035616,5]
[361820562,1747823585266,-420.0,0.00035616,5]
[361820563,1747823585277,-871.43,0.00035616,5]
[361820564,1747823585288,-420.0,0.00035616,5]
[361820565,1747823585299,-778.01,0.00035616,5]
[361820566,1747823585310,-3424.15,0.00035616,5]
[361820567,1747823585320,-6336.25,0.00035616,5]
[361820568,1747823585331,-420.0,0.00035616,5]
[361820569,1747823585341,-575.11,0.00035616,5]
[361820570,1747823585351,-2227.33,0.00035616,5]
[361820571,1747823585363,-469.12,0.00035616,5]
[361820572,1747823585373,-2778.38,0.00035616,5]
[361820573,1747823585386,-5264.38,0.00035616,5]
[361820574,1747823585397,-2282.35,0.00035616,5]
[361820575,1747823585407,-420.0,0.00035616,5]
[361820576,1747823585418,-2508.06,0.00035616,5]
[361820577,1747823585430,-477.54,0.00035616,5]
[361820578,1747823585440,-420.0,0.00035616,5]
[361820579,1747823585451,-45711.39,0.00035616,5]
[361820580,1747823585462,-1438.01,0.00035616,5]
[361820581,1747823585472,-420.0,0.00035616,5]
[361820582,1747823585482,-420.0,0.00035616,5]
[361820583,1747823585492,-492.73,0.00035616,5]
[361820584,1747823585502,-2994.99,0.00035616,5]
[361820585,1747823585511,-845.16,0.00035616,5]
[361820586,1747823585522,-2847.74,0.00035616,5]
[361820587,1747823585532,-7033.02,0.00035616,5]
[361820588,1747823585543,-332.92456532,0.00035616,5]
[361820589,1747823585553,-20631.06,0.00035616,5]
[361820590,1747823585563,-1653.01,0.00035616,5]
[361820591,1747823585573,-440.6,0.00035616,5]
[361820592,1747823585583,-480.69,0.00035616,5]
[361820593,1747823585592,-908.75,0.00035616,5]
[361820594,1747823585602,-420.0,0.00035616,5]
[361820595,1747823585613,-420.0,0.00035616,5]
[361820596,1747823585623,-1811.64,0.00035616,5]
[361820597,1747823585633,-1675.59,0.00035616,5]
[361820598,1747823585642,-1341.01,0.00035616,5]
[361820599,1747823585652,-1620.28,0.00035616,5]
[361820600,1747823585662,-2039.96,0.00035616,5]
[361820601,1747823585672,-659.87,0.00035616,5]
[361820602,1747823585682,-2331.07,0.00035616,5]
[361820603,1747823585692,-1650.39,0.00035616,5]
[361820604,1747823585702,-1130.47,0.00035616,5]
[361820605,1747823585711,-8529.77,0.00035616,5]
[361820606,1747823585722,-1170.52,0.00035616,5]
[361820607,1747823585731,-1019.14,0.00035616,5]
[361820608,1747823585742,-13852.49,0.00035616,5]
[361820609,1747823585752,-594.46,0.00035616,5]
[361820610,1747823585763,-420.0,0.00035616,5]
[361820611,1747823585773,-420.0,0.00035616,5]
[361820612,1747823585784,-528.88,0.00035616,5]
[361820613,1747823585794,-420.0,0.00035616,5]
[361820614,1747823585805,-729.81,0.00035616,5]
[361820615,1747823585815,-6448.31,0.00035616,5]
[361820616,1747823585825,-1260.39,0.00035616,5]
[361820617,1747823585835,-4031.81,0.00035616,5]
[361820618,1747823585845,-1826.19,0.00035616,5]
[361820619,1747823585855,-15980.3,0.00035616,2]
[361820620,1747823585868,-569.82,0.00035616,5]
[361820621,1747823585878,-1991.55,0.00035616,5]
[361820622,1747823585889,-395.92364548,0.00035616,5]
[361820623,1747823585899,-420.0,0.00035616,5]
[361820624,1747823585909,-711.84,0.00035616,5]
[361820625,1747823585919,-932.88,0.00035616,5]
[361820626,1747823585929,-1316.77,0.00035616,5]
[361820627,1747823585940,-1559.3,0.00035616,5]
[361820628,1747823585950,-1828.91,0.00035616,5]
[361820629,1747823585960,-1672.61,0.00035616,5]
[361820630,1747823585970,-6643.48,0.00035616,5]
[361820631,1747823585980,-5987.12,0.00035616,5]
[361820632,1747823585990,-420.0,0.00035616,5]
[361820633,1747823586000,-4970.74,0.00035616,5]
[361820634,1747823586010,-420.0,0.00035616,5]
[361820635,1747823586021,-908.99,0.00035616,5]
[361820636,1747823586031,-1754.62,0.00035616,5]
[361820637,1747823586040,-636.17,0.00035616,5]
[361820638,1747823586049,-907.69,0.00035616,5]
[361820639,1747823586060,-434.27,0.00035616,5]
[361820640,1747823586070,-420.0,0.00035616,5]
[361820641,1747823586081,-420.0,0.00035616,5]
[361820642,1747823586091,-1727.02,0.00035616,5]
[361820643,1747823586101,-14282.24,0.00035616,5]
[361820644,1747823586111,-2354.7,0.00035616,5]
[361820645,1747823586120,-2934.17,0.00035616,5]
[361820646,1747823586130,-420.0,0.00035616,5]
[361820647,1747823586141,-2098.09,0.00035616,5]
[361820648,1747823586151,-2370.12,0.00035616,5]
[361820649,1747823586161,-635.77,0.00035616,5]
[361820650,1747823586171,-1608.41,0.00035616,5]
[361820651,1747823586181,-2448.57,0.00035616,5]
[361820652,1747823586191,-565.39,0.00035616,5]
[361820653,1747823586202,-832.67,0.00035616,5]
[361820654,1747823586212,-2132.27,0.00035616,5]
[361820655,1747823586222,-1444.81,0.00035616,5]
[361820656,1747823586231,-674.57,0.00035616,5]
[361820657,1747823586242,-1244.04,0.00035616,5]
[361820658,1747823586252,-14461.5,0.00035616,5]
[361820659,1747823586262,-4167.33,0.00035616,5]
[361820660,1747823586419,-5215.67,0.00035616,5]
[361820661,1747823586430,-888.13,0.00035616,5]
[361820662,1747823586440,-207938.64,0.00035616,5]
[361820663,1747823586450,-548.09,0.00035616,5]
[361820664,1747823586460,-420.0,0.00035616,5]
[361820665,1747823586472,-2319.06,0.00035616,5]
[361820666,1747823586483,-3257.11,0.00035616,5]
[361820667,1747823586493,-1507.21,0.00035616,5]
[361820668,1747823586503,-1493.55,0.00035616,5]
[361820669,1747823586514,-2557.88,0.00035616,5]
[361820670,1747823586524,-1088.44,0.00035616,5]
[361820671,1747823586535,-2873.2,0.00035616,5]
[361820672,1747823586545,-411.79694528,0.00035616,5]
[361820673,1747823586555,-697.67,0.00035616,5]
[361820674,1747823586565,-5582.21,0.00035616,5]
[361820675,1747823586575,-420.0,0.00035616,5]
[361820676,1747823586585,-480.01,0.00035616,5]
[361820677,1747823586594,-2282.96,0.00035616,5]
[361820678,1747823586604,-1657.0,0.00035616,5]
[361820679,1747823586615,-18765.11,0.00035616,5]
[361820680,1747823586625,-799.92,0.00035616,5]
[361820681,1747823586635,-1063.9,0.00035616,5]
[361820682,1747823586644,-420.0,0.00035616,5]
[361820683,1747823586654,-673.17,0.00035616,5]
[361820684,1747823586664,-373.39402168,0.00035616,5]
[361820685,1747823586674,-3847.23,0.00035616,5]
[361820686,1747823586684,-549.05,0.00035616,5]
[361820687,1747823586695,-474.32,0.00035616,5]
[361820688,1747823586705,-420.0,0.00035616,5]
[361820689,1747823586716,-2564.95,0.00035616,5]
[361820690,1747823586726,-1818.07,0.00035616,5]
[361820691,1747823586736,-42262.48,0.00035616,5]
[361820692,1747823586746,-186.46268701,0.00035616,5]
[361820693,1747823586756,-1719.68,0.00035616,5]
[361820694,1747823586766,-4510.74,0.00035616,5]
[361820695,1747823586776,-516.93,0.00035616,5]
[361820696,1747823586787,-3137.08,0.00035616,5]
[361820697,1747823586798,-506.82,0.00035616,5]
[361820698,1747823586808,-9532.22,0.00035616,5]
[361820699,1747823586818,-420.0,0.00035616,5]
[361820700,1747823586827,-1001.23,0.00035616,5]
[361820701,1747823586838,-420.0,0.00035616,5]
[361820702,1747823586847,-1349.86,0.00035616,5]
[361820703,1747823586858,-1554.78,0.00035616,5]
[361820704,1747823586869,-874.84,0.00035616,5]
[361820705,1747823586879,-2359.68,0.00035616,5]
[361820706,1747823586889,-627.61,0.00035616,5]
[361820707,1747823586900,-670.93,0.00035616,5]
[361820708,1747823586910,-420.0,0.00035616,5]
[361820709,1747823586921,-1909.1,0.00035616,5]
[361820710,1747823586932,-3667.82,0.00035616,5]
[361820711,1747823586942,-713.73,0.00035616,5]
[361820712,1747823586952,-173.84979506,0.00035616,2]
[361820713,1747823586962,-500.0,0.00035619,2]
[361820714,1747823586972,-500.0,0.00035619,2]
[361820715,1747823586982,-500.0,0.00035619,2]
[361820716,1747823586993,-500.0,0.00035619,2]
[361820717,1747823587003,-500.0,0.00035619,2]
[361820718,1747823587014,-500.0,0.00035619,2]
[361820719,1747823587024,-500.0,0.00035619,2]
[361820720,1747823587034,-500.0,0.00035619,2]
[361820721,1747823587044,-500.0,0.00035619,2]
[361820722,1747823587054,-500.0,0.00035619,2]
[361820723,1747823587063,-500.0,0.00035619,2]
[361820724,1747823587074,-500.0,0.00035619,2]
[361820725,1747823587084,-500.0,0.00035619,2]
[361820726,1747823587094,-500.0,0.00035619,2]
[361820727,1747823587105,-500.0,0.00035619,2]
[361820728,1747823587116,-500.0,0.00035619,2]
[361820729,1747823587125,-500.0,0.00035619,2]
[361820730,1747823587135,-500.0,0.00035619,2]
[361820731,1747823587146,-500.0,0.00035619,2]
[361820732,1747823587156,-500.0,0.00035619,2]
[361820733,1747823587165,-500.0,0.00035619,2]
[361820734,1747823587175,-500.0,0.00035619,2]
[361820735,1747823587185,-500.0,0.00035619,2]
[361820736,1747823587196,-519.0,0.00035619,2]
[361820737,1747823587207,-500.0,0.00035619,2]
[361820738,1747823587224,-500.0,0.00035619,2]
[361820739,1747823587236,-500.0,0.00035619,2]
[361820740,1747823587246,-500.0,0.00035619,2]
[361820741,1747823587257,-500.0,0.00035619,2]
[361820742,1747823587268,-506.0,0.00035619,2]
[361820743,1747823587278,-534.0,0.00035619,2]
[361820744,1747823587288,-150.0,0.00035643,10]
[361820745,1747823587299,-210.49620905,0.00035671,10]
[361820746,1747823587310,-45255.86628238,0.00035678,3]
[361820747,1747823587321,-1000.0,0.00035681,2]
[361820748,1747823587331,-756.58,0.000357,14]
[361820749,1747823587343,-155.15,0.000357,31]
[361820750,1747823587354,-155.15,0.000357,31]
[361820751,1747823587365,-155.15,0.000357,31]
[361820752,1747823587380,-155.15,0.000357,31]
[361820753,1747823587394,-489.43,0.00035706,120]
[361820754,1747823587405,-2000.0,0.0003576,3]
[361820755,1747823587415,-2000.9091,0.0003576,3]
[361820756,1747823587427,-2000.0,0.0003576,3]
[361820757,1747823587438,-212.0,0.0003582,30]
[361820758,1747823587448,-500.0,0.00035849,60]
[361820759,1747823587460,-783.82470554,0.0003587,2]
[361820760,1747823587471,-10000.0,0.0003588,120]
[361820761,1747823587482,-420.0,0.0003589,5]
[361820762,1747823587492,-868.63,0.0003589,5]
[361820763,1747823587503,-248.98967858,0.0003589,5]
[361820764,1747823587514,-771.73,0.0003589,5]
[361820765,1747823587525,-1206.97,0.0003589,5]
[361820766,1747823587535,-1764.15,0.0003589,5]
[361820767,1747823587547,-497.1,0.0003589,5]
[361820768,1747823587557,-550.16,0.0003589,5]
[361820769,1747823587568,-426.28556892,0.0003589,5]
[361820770,1747823587579,-420.0,0.0003589,5]
[361820771,1747823587590,-420.0,0.0003589,5]
[361820772,1747823587601,-965.56,0.0003589,5]
[361820773,1747823587612,-616.51,0.0003589,5]
[361820774,1747823587623,-420.0,0.0003589,5]
[361820775,1747823587633,-562.65,0.0003589,5]
[361820776,1747823587643,-611.48,0.0003589,5]
[361820777,1747823587653,-420.0,0.0003589,5]
[361820778,1747823587663,-420.0,0.0003589,5]
[361820779,1747823587672,-499.33,0.0003589,5]
[361820780,1747823587683,-506.54,0.0003589,5]
[361820781,1747823587694,-911.46,0.0003589,5]
[361820782,1747823587704,-1153.75,0.0003589,5]
[361820783,1747823587714,-420.0,0.0003589,5]
[361820784,1747823587724,-730.43,0.0003589,5]
[361820785,1747823587735,-420.0,0.0003589,5]
[361820786,1747823587746,-420.0,0.0003589,5]
[361820787,1747823587757,-1697.54,0.0003589,5]
[361820788,1747823587768,-579.77,0.0003589,5]
[361820789,1747823587779,-420.0,0.0003589,5]
[361820790,1747823587790,-162.53009007,0.0003589,5]
[361820791,1747823587800,-420.0,0.0003589,5]
[361820792,1747823587811,-570.61,0.0003589,5]
[361820793,1747823587822,-420.0,0.0003589,5]
[361820794,1747823587833,-788.01,0.0003589,5]
[361820795,1747823587844,-1490.72,0.0003589,5]
[361820796,1747823587855,-917.84,0.0003589,5]
[361820797,1747823587866,-642.67,0.0003589,5]
[361820798,1747823587877,-901.58,0.0003589,5]
[361820799,1747823587888,-807.74,0.0003589,5]
[361820800,1747823587900,-3015.53,0.0003589,5]
[361820801,1747823587911,-420.0,0.0003589,5]
[361820802,1747823587922,-460.17,0.0003589,5]
[361820803,1747823587932,-642.11,0.0003589,5]
[361820804,1747823587944,-420.0,0.0003589,5]
[361820805,1747823587955,-420.0,0.0003589,5]
[361820806,1747823587965,-1185.77,0.0003589,5]
[361820807,1747823587975,-973.19,0.0003589,5]
[361820808,1747823587985,-497.57,0.0003589,5]
[361820809,1747823587995,-420.0,0.0003589,5]
[361820810,1747823588005,-1098.15,0.0003589,5]
[361820811,1747823588015,-423.53473447,0.0003589,5]
[361820812,1747823588025,-685.16,0.0003589,5]
[361820813,1747823588035,-420.0,0.0003589,5]
[361820814,1747823588047,-448.34,0.0003589,5]
[361820815,1747823588057,-1485.21,0.0003589,5]
[361820816,1747823588068,-818.23,0.0003589,5]
[361820817,1747823588078,-443.81,0.0003589,5]
[361820818,1747823588088,-1526.88,0.0003589,5]
[361820819,1747823588101,-420.0,0.0003589,5]
[361820820,1747823588112,-420.0,0.0003589,5]
[361820821,1747823588123,-470.16,0.0003589,5]
[361820822,1747823588133,-443.58,0.0003589,5]
[361820823,1747823588144,-669.64,0.0003589,5]
[361820824,1747823588155,-420.0,0.0003589,5]
[361820825,1747823588165,-937.45,0.0003589,5]
[361820826,1747823588176,-2266.87,0.0003589,5]
[361820827,1747823588187,-420.0,0.0003589,5]
[361820828,1747823588198,-420.0,0.0003589,5]
[361820829,1747823588208,-420.0,0.0003589,5]
[361820830,1747823588221,-442.68,0.0003589,5]
[361820831,1747823588232,-420.0,0.0003589,5]
[361820832,1747823588244,-597.09,0.0003589,5]
[361820833,1747823588256,-655.53,0.0003589,5]
[361820834,1747823588268,-636.42,0.0003589,5]
[361820835,1747823588280,-420.0,0.0003589,5]
[361820836,1747823588291,-838.78,0.0003589,5]
[361820837,1747823588302,-493.93,0.0003589,5]
[361820838,1747823588314,-507.08007316,0.0003589,5]
[361820839,1747823588327,-420.0,0.0003589,5]
[361820840,1747823588338,-560.23,0.0003589,5]
[361820841,1747823588350,-1078.18,0.0003589,5]
[361820842,1747823588362,-420.0,0.0003589,5]
[361820843,1747823588389,-420.0,0.0003589,5]
[361820844,1747823588410,-420.0,0.0003589,5]
[361820845,1747823588433,-1065.69,0.0003589,5]
[361820846,1747823588457,-1253.93,0.0003589,5]
[361820847,1747823588475,-1274.75,0.0003589,5]
[361820848,1747823588498,-463.91,0.0003589,5]
[361820849,1747823588522,-721.97,0.0003589,5]
[361820850,1747823588545,-2322.3,0.0003589,5]
[361820851,1747823588568,-420.0,0.0003589,5]
[361820852,1747823588588,-821.62,0.0003589,5]
[361820853,1747823588609,-422.38,0.0003589,5]
[361820854,1747823588625,-420.0,0.0003589,5]
[361820855,1747823588647,-550.85,0.0003589,5]
[361820856,1747823588662,-1544.61,0.0003589,5]
[361820857,1747823588683,-420.0,0.0003589,5]
[361820858,1747823588703,-499.46,0.0003589,5]
[361820859,1747823588722,-678.04,0.0003589,5]
[361820860,1747823588738,-616.6,0.0003589,5]
[361820861,1747823588764,-546.75,0.0003589,5]
[361820862,1747823588782,-1170.85,0.0003589,5]
[361820863,1747823588799,-420.0,0.0003589,5]
[361820864,1747823588819,-420.0,0.0003589,5]
[361820865,1747823588837,-420.0,0.0003589,5]
[361820866,1747823588855,-1581.01,0.0003589,5]
[361820867,1747823588873,-420.0,0.0003589,5]
[361820868,1747823588891,-2020.82,0.0003589,5]
[361820869,1747823588908,-1587.36,0.0003589,5]
[361820870,1747823588926,-440.31,0.0003589,5]
[361820871,1747823588945,-528.73,0.0003589,5]
[361820872,1747823588963,-420.0,0.0003589,5]
[361820873,1747823588980,-530.24,0.0003589,5]